[Event "Late-Titled-Tuesday-Blitz-November-28-2023"]
[Site "Chess.com"]
[Date "2023.11.28"]
[Round "8"]
[White "CraiggoryC"]
[Black "YellowJacek"]
[Result "0-1"]
[WhiteElo "2182"]
[BlackElo "2352"]
[TimeControl "180+1"]
[EndTime "15:25:06 PST"]
[Termination "YellowJacek won by resignation"]

1. e4 {[%clk 0:02:54.4]} 1... c5 {[%clk 0:02:58.8]} 2. Nf3 {[%clk 0:02:54]} 2...
Nc6 {[%clk 0:02:59.1]} 3. d4 {[%clk 0:02:53.8]} 3... cxd4 {[%clk 0:02:58.6]} 4.
Nxd4 {[%clk 0:02:54.7]} 4... Nf6 {[%clk 0:02:58.6]} 5. Nc3 {[%clk 0:02:55.2]}
5... d6 {[%clk 0:02:59]} 6. Bc4 {[%clk 0:02:54.4]} 6... Qb6 {[%clk 0:02:58.1]}
7. Nb3 {[%clk 0:02:51.9]} 7... e6 {[%clk 0:02:53.8]} 8. O-O {[%clk 0:02:33.4]}
8... Be7 {[%clk 0:02:53]} 9. Be3 {[%clk 0:02:30.4]} 9... Qc7 {[%clk 0:02:52.6]}
10. Qe2 {[%clk 0:02:21.2]} 10... a6 {[%clk 0:02:52.6]} 11. a3 {[%clk 0:02:13.1]}
11... O-O {[%clk 0:02:42.7]} 12. f4 {[%clk 0:02:09.5]} 12... b5 {[%clk
0:02:42.1]} 13. Bd3 {[%clk 0:02:09.2]} 13... Bb7 {[%clk 0:02:42.4]} 14. Rae1
{[%clk 0:02:03.5]} 14... e5 {[%clk 0:02:26.2]} 15. Nd5 {[%clk 0:01:58.1]} 15...
Nxd5 {[%clk 0:02:24.8]} 16. exd5 {[%clk 0:01:59]} 16... Na5 {[%clk 0:02:16.9]}
17. Nxa5 {[%clk 0:01:38.8]} 17... Qxa5 {[%clk 0:02:17.8]} 18. fxe5 {[%clk
0:01:37.1]} 18... Bxd5 {[%clk 0:02:12.8]} 19. exd6 {[%clk 0:01:27.4]} 19... Bxd6
{[%clk 0:01:51.8]} 20. Qh5 {[%clk 0:01:24.4]} 20... g6 {[%clk 0:01:51.7]} 21.
Qxd5 {[%clk 0:01:23.5]} 21... Rad8 {[%clk 0:01:50.6]} 22. Qf3 {[%clk 0:01:13.4]}
22... Bb8 {[%clk 0:01:42.9]} 23. Bh6 {[%clk 0:00:55.5]} 23... Qc7 {[%clk
0:01:38.8]} 24. g3 {[%clk 0:00:42.8]} 24... Rfe8 {[%clk 0:01:35.9]} 25. Bf4
{[%clk 0:00:33.1]} 25... Ba7+ {[%clk 0:01:35.8]} 26. Kg2 {[%clk 0:00:31.4]}
26... Qd7 {[%clk 0:01:29.9]} 27. Bg5 {[%clk 0:00:22.3]} 27... Rc8 {[%clk
0:01:27.8]} 28. Qf6 {[%clk 0:00:15]} 28... Bd4 {[%clk 0:01:26.8]} 29. Qf4 {[%clk
0:00:11.9]} 29... Bxb2 {[%clk 0:01:25.5]} 30. Bf6 {[%clk 0:00:12.3]} 30... Bxf6
{[%clk 0:01:22]} 31. Qxf6 {[%clk 0:00:11.2]} 31... Rc6 {[%clk 0:01:14]} 32.
Rxe8+ {[%clk 0:00:10.2]} 32... Qxe8 {[%clk 0:01:14.9]} 33. Qf3 {[%clk
0:00:09.8]} 33... Re6 {[%clk 0:01:09.6]} 34. h4 {[%clk 0:00:09.9]} 34... h5
{[%clk 0:01:08.5]} 35. a4 {[%clk 0:00:09.3]} 35... bxa4 {[%clk 0:01:07.6]} 36.
Bxa6 {[%clk 0:00:09.5]} 36... Rxa6 {[%clk 0:01:04.5]} 37. Rd1 {[%clk 0:00:06.6]}
37... Qa8 {[%clk 0:01:01.5]} 38. Qxa8+ {[%clk 0:00:05.7]} 38... Rxa8 {[%clk
0:01:02.4]} 39. Ra1 {[%clk 0:00:05.9]} 39... Kg7 {[%clk 0:01:01.5]} 40. Ra3
{[%clk 0:00:05.6]} 40... Kf6 {[%clk 0:01:02]} 41. Kf3 {[%clk 0:00:06.2]} 41...
Ke5 {[%clk 0:01:02.4]} 42. Ke3 {[%clk 0:00:06.4]} 42... Kd5 {[%clk 0:01:02.7]}
43. Kd3 {[%clk 0:00:06.8]} 43... Kc5 {[%clk 0:01:03.3]} 44. Kc3 {[%clk
0:00:07.2]} 44... Kb5 {[%clk 0:01:02.6]} 45. Kd4 {[%clk 0:00:07.7]} 45... Kb4
{[%clk 0:01:02.4]} 46. Ra1 {[%clk 0:00:07]} 46... a3 {[%clk 0:01:02.6]} 47. c3+
{[%clk 0:00:07.1]} 47... Kb3 {[%clk 0:01:02.9]} 48. c4 {[%clk 0:00:07]} 48... a2
{[%clk 0:01:02.8]} 49. c5 {[%clk 0:00:06.5]} 49... Kb2 {[%clk 0:01:03.2]} 50.
Rxa2+ {[%clk 0:00:06.5]} 50... Kxa2 {[%clk 0:01:03]} 51. c6 {[%clk 0:00:06.3]}
51... Kb3 {[%clk 0:01:03.1]} 52. Kc5 {[%clk 0:00:06.8]} 52... Kc3 {[%clk
0:01:03.1]} 53. c7 {[%clk 0:00:07]} 53... Kd3 {[%clk 0:01:03]} 54. Kc6 {[%clk
0:00:07.2]} 54... Ke3 {[%clk 0:01:02.9]} 55. Kb7 {[%clk 0:00:07.5]} 55... Re8
{[%clk 0:01:02.8]} 56. c8=Q {[%clk 0:00:08.1]} 56... Rxc8 {[%clk 0:01:02.8]} 57.
Kxc8 {[%clk 0:00:09]} 57... Kf3 {[%clk 0:01:03.1]} 58. Kd7 {[%clk 0:00:09.7]}
58... Kxg3 {[%clk 0:01:03.9]} 59. Ke7 {[%clk 0:00:10.1]} 59... Kxh4 {[%clk
0:01:04.8]} 60. Kxf7 {[%clk 0:00:10.3]} 60... Kg4 {[%clk 0:01:05.7]} 61. Kxg6
{[%clk 0:00:10.7]} 61... h4 {[%clk 0:01:06.6]} 0-1

[Event "Late-Titled-Tuesday-Blitz-November-28-2023"]
[Site "Chess.com"]
[Date "2023.11.28"]
[Round "8"]
[White "Meri-Arabidze"]
[Black "Statham_l3"]
[Result "1-0"]
[WhiteElo "2682"]
[BlackElo "2553"]
[TimeControl "180+1"]
[EndTime "15:25:10 PST"]
[Termination "Meri-Arabidze won on time"]

1. b3 {[%clk 0:02:56]} 1... e5 {[%clk 0:02:58.8]} 2. Bb2 {[%clk 0:02:56.2]} 2...
Nc6 {[%clk 0:02:59.3]} 3. e3 {[%clk 0:02:55.5]} 3... d5 {[%clk 0:02:56]} 4. Nf3
{[%clk 0:02:52.6]} 4... e4 {[%clk 0:02:55.1]} 5. Nd4 {[%clk 0:02:52.7]} 5... Bd6
{[%clk 0:02:55.3]} 6. c4 {[%clk 0:02:48.3]} 6... Ne5 {[%clk 0:02:48.5]} 7. cxd5
{[%clk 0:02:43]} 7... Bg4 {[%clk 0:02:44.4]} 8. Qc2 {[%clk 0:02:41.9]} 8... Nf6
{[%clk 0:02:39.9]} 9. h3 {[%clk 0:02:36.2]} 9... Bh5 {[%clk 0:02:38.3]} 10. Bb5+
{[%clk 0:02:34.7]} 10... c6 {[%clk 0:02:21.3]} 11. dxc6 {[%clk 0:02:34.4]} 11...
O-O {[%clk 0:02:20.5]} 12. cxb7 {[%clk 0:02:33.3]} 12... Rb8 {[%clk 0:02:20.5]}
13. O-O {[%clk 0:02:08.2]} 13... Rxb7 {[%clk 0:02:10.1]} 14. a4 {[%clk
0:02:08.2]} 14... Rc7 {[%clk 0:01:57]} 15. Nc3 {[%clk 0:02:08.2]} 15... Nf3+
{[%clk 0:01:35.8]} 16. gxf3 {[%clk 0:01:59.6]} 16... Qc8 {[%clk 0:01:35.8]} 17.
Kg2 {[%clk 0:01:32]} 17... Rc5 {[%clk 0:00:43.6]} 18. f4 {[%clk 0:01:10.2]}
18... Bg4 {[%clk 0:00:20.8]} 19. Rh1 {[%clk 0:01:08]} 19... Rh5 {[%clk 0:00:21]}
20. Kf1 {[%clk 0:00:59.6]} 20... Bxh3+ {[%clk 0:00:17.6]} 21. Ke1 {[%clk
0:00:59.8]} 21... Qg4 {[%clk 0:00:14.2]} 22. Bf1 {[%clk 0:00:56.1]} 22... Bxf1
{[%clk 0:00:09.2]} 23. Rxf1 {[%clk 0:00:57]} 23... Rc8 {[%clk 0:00:08.2]} 24.
Qd1 {[%clk 0:00:53.9]} 24... Qg2 {[%clk 0:00:07.1]} 25. Qe2 {[%clk 0:00:54.2]}
25... Bb4 {[%clk 0:00:05.9]} 26. Rc1 {[%clk 0:00:50.6]} 26... h6 {[%clk
0:00:05.3]} 27. Na2 {[%clk 0:00:48.2]} 27... Rxc1+ {[%clk 0:00:05.7]} 28. Bxc1
{[%clk 0:00:48.9]} 28... Bc5 {[%clk 0:00:05]} 29. Bb2 {[%clk 0:00:47.5]} 29...
Ng4 {[%clk 0:00:04.8]} 30. Kd1 {[%clk 0:00:37.2]} 30... Nh2 {[%clk 0:00:04.2]}
31. Re1 {[%clk 0:00:33.5]} 31... Bxd4 {[%clk 0:00:04.7]} 32. Qxh5 {[%clk
0:00:31.7]} 32... Bxb2 {[%clk 0:00:04.3]} 33. Kc2 {[%clk 0:00:30.8]} 33... Nf3
{[%clk 0:00:04.2]} 34. Rd1 {[%clk 0:00:27.4]} 1-0

[Event "Late-Titled-Tuesday-Blitz-November-28-2023"]
[Site "Chess.com"]
[Date "2023.11.28"]
[Round "8"]
[White "Yushko_Olga"]
[Black "MaxLeto"]
[Result "0-1"]
[WhiteElo "2137"]
[BlackElo "2522"]
[TimeControl "180+1"]
[EndTime "15:25:18 PST"]
[Termination "MaxLeto won on time"]

1. d4 {[%clk 0:02:59.5]} 1... h5 {[%clk 0:02:53]} 2. c4 {[%clk 0:02:59]} 2... h4
{[%clk 0:02:53.9]} 3. Nc3 {[%clk 0:02:58.1]} 3... d6 {[%clk 0:02:54.1]} 4. h3
{[%clk 0:02:56]} 4... e5 {[%clk 0:02:54.1]} 5. dxe5 {[%clk 0:02:55.4]} 5... dxe5
{[%clk 0:02:55]} 6. Qc2 {[%clk 0:02:54.2]} 6... Be6 {[%clk 0:02:51.6]} 7. Nf3
{[%clk 0:02:52.4]} 7... f6 {[%clk 0:02:41.4]} 8. Qe4 {[%clk 0:02:36]} 8... c6
{[%clk 0:02:24.5]} 9. Nxh4 {[%clk 0:02:30.9]} 9... Ne7 {[%clk 0:02:10.6]} 10.
Ng6 {[%clk 0:02:27.5]} 10... Bf5 {[%clk 0:01:55.3]} 11. Qf3 {[%clk 0:02:11.4]}
11... Bxg6 {[%clk 0:01:52.2]} 12. Be3 {[%clk 0:02:09.2]} 12... Na6 {[%clk
0:01:48.1]} 13. Rd1 {[%clk 0:02:08.1]} 13... Qc7 {[%clk 0:01:40.4]} 14. g3
{[%clk 0:01:57.5]} 14... Nf5 {[%clk 0:01:39.1]} 15. Bg2 {[%clk 0:01:56.7]} 15...
Nxe3 {[%clk 0:01:36.5]} 16. Qxe3 {[%clk 0:01:57.6]} 16... Bc5 {[%clk 0:01:36.1]}
17. Qf3 {[%clk 0:01:54]} 17... Rd8 {[%clk 0:01:23.5]} 18. Rxd8+ {[%clk
0:01:44.5]} 18... Qxd8 {[%clk 0:01:23.1]} 19. Qg4 {[%clk 0:01:45.2]} 19... Kf7
{[%clk 0:01:19.1]} 20. h4 {[%clk 0:01:38.7]} 20... Qd4 {[%clk 0:01:13.4]} 21.
Qf3 {[%clk 0:01:33.7]} 21... Bh5 {[%clk 0:01:05.6]} 22. Qf5 {[%clk 0:01:20.1]}
22... Bg4 {[%clk 0:01:04.9]} 23. Qe4 {[%clk 0:00:58.1]} 23... Qxf2+ {[%clk
0:01:02.2]} 24. Kd1 {[%clk 0:00:53.4]} 24... Qd4+ {[%clk 0:01:00.8]} 25. Kc2
{[%clk 0:00:50]} 25... Qxe4+ {[%clk 0:00:57.6]} 26. Nxe4 {[%clk 0:00:42.6]}
26... Bxe2 {[%clk 0:00:53.7]} 27. a3 {[%clk 0:00:38.1]} 27... Rd8 {[%clk
0:00:51.4]} 28. b4 {[%clk 0:00:37.4]} 28... Be7 {[%clk 0:00:42.2]} 29. Kb2
{[%clk 0:00:24.9]} 29... Bxc4 {[%clk 0:00:39.9]} 30. h5 {[%clk 0:00:22.4]} 30...
f5 {[%clk 0:00:34.7]} 31. Rc1 {[%clk 0:00:15.7]} 31... fxe4 {[%clk 0:00:31.1]}
32. Rxc4 {[%clk 0:00:15.4]} 32... Rd2+ {[%clk 0:00:31.7]} 33. Rc2 {[%clk
0:00:14.1]} 33... Rxc2+ {[%clk 0:00:31.4]} 34. Kxc2 {[%clk 0:00:15]} 34... e3
{[%clk 0:00:32.3]} 35. Kd3 {[%clk 0:00:14.9]} 35... Bg5 {[%clk 0:00:32]} 36. Be4
{[%clk 0:00:14.4]} 36... Nc7 {[%clk 0:00:31.6]} 37. Bg6+ {[%clk 0:00:13]} 37...
Kf6 {[%clk 0:00:31.7]} 38. Be4 {[%clk 0:00:12.7]} 38... Nb5 {[%clk 0:00:28.5]}
39. a4 {[%clk 0:00:11.8]} 39... Nd4 {[%clk 0:00:28.4]} 40. h6 {[%clk 0:00:03.1]}
40... gxh6 {[%clk 0:00:27]} 0-1

[Event "Late-Titled-Tuesday-Blitz-November-28-2023"]
[Site "Chess.com"]
[Date "2023.11.28"]
[Round "8"]
[White "Nf3c5"]
[Black "NikolaGry"]
[Result "1-0"]
[WhiteElo "2525"]
[BlackElo "2701"]
[TimeControl "180+1"]
[EndTime "15:25:19 PST"]
[Termination "Nf3c5 won on time"]

1. d4 {[%clk 0:02:57.4]} 1... d5 {[%clk 0:02:59.6]} 2. Nf3 {[%clk 0:02:57.7]}
2... Nc6 {[%clk 0:03:00]} 3. Bf4 {[%clk 0:02:49.4]} 3... Bg4 {[%clk 0:02:59.5]}
4. Nbd2 {[%clk 0:02:49.1]} 4... e6 {[%clk 0:02:59.2]} 5. h3 {[%clk 0:02:45.9]}
5... Bh5 {[%clk 0:02:58.2]} 6. e3 {[%clk 0:02:44.7]} 6... Bd6 {[%clk 0:02:58.1]}
7. c3 {[%clk 0:02:26.7]} 7... Nge7 {[%clk 0:02:51.1]} 8. Be2 {[%clk 0:02:24.5]}
8... h6 {[%clk 0:02:45.4]} 9. Qb3 {[%clk 0:02:22]} 9... Bxf4 {[%clk 0:02:36.5]}
10. exf4 {[%clk 0:02:20.1]} 10... Qd6 {[%clk 0:02:34.3]} 11. g3 {[%clk
0:02:14.9]} 11... O-O {[%clk 0:02:32.2]} 12. O-O {[%clk 0:02:08.1]} 12... a6
{[%clk 0:02:29.1]} 13. Rae1 {[%clk 0:02:01.5]} 13... Bxf3 {[%clk 0:02:18.4]} 14.
Nxf3 {[%clk 0:01:52.2]} 14... b5 {[%clk 0:02:18.2]} 15. Bd3 {[%clk 0:01:50.5]}
15... b4 {[%clk 0:01:53.4]} 16. Qa4 {[%clk 0:01:18.2]} 16... Rfb8 {[%clk
0:01:46.2]} 17. Re2 {[%clk 0:01:17.9]} 17... Rb6 {[%clk 0:01:39]} 18. Rfe1
{[%clk 0:01:17.1]} 18... Rab8 {[%clk 0:01:29]} 19. Qc2 {[%clk 0:01:00.7]} 19...
bxc3 {[%clk 0:01:25.9]} 20. bxc3 {[%clk 0:01:01.6]} 20... Qa3 {[%clk 0:01:20.4]}
21. f5 {[%clk 0:00:46.3]} 21... exf5 {[%clk 0:00:48.8]} 22. Bxf5 {[%clk
0:00:37.5]} 22... Rb2 {[%clk 0:00:46.4]} 23. Qd3 {[%clk 0:00:33.3]} 23... Rxe2
{[%clk 0:00:36.5]} 24. Rxe2 {[%clk 0:00:28.6]} 24... Rb2 {[%clk 0:00:35.4]} 25.
Rxb2 {[%clk 0:00:17.1]} 25... Qxb2 {[%clk 0:00:33.2]} 26. Qc2 {[%clk 0:00:18]}
26... Qa3 {[%clk 0:00:21]} 27. Bd3 {[%clk 0:00:16.5]} 27... g6 {[%clk
0:00:17.7]} 28. Kg2 {[%clk 0:00:16.5]} 28... Kg7 {[%clk 0:00:17.1]} 29. Qd2
{[%clk 0:00:17]} 29... Qa5 {[%clk 0:00:13.8]} 30. h4 {[%clk 0:00:15.8]} 30...
Nd8 {[%clk 0:00:12.8]} 31. h5 {[%clk 0:00:15.3]} 31... Ne6 {[%clk 0:00:11.1]}
32. hxg6 {[%clk 0:00:15.1]} 32... Nxg6 {[%clk 0:00:09.3]} 33. Bxg6 {[%clk
0:00:10.9]} 33... fxg6 {[%clk 0:00:07]} 34. Ne5 {[%clk 0:00:11.2]} 34... Qb6
{[%clk 0:00:03.2]} 35. Ng4 {[%clk 0:00:09]} 35... Ng5 {[%clk 0:00:01.8]} 36. Qf4
{[%clk 0:00:07.8]} 1-0

[Event "Late-Titled-Tuesday-Blitz-November-28-2023"]
[Site "Chess.com"]
[Date "2023.11.28"]
[Round "8"]
[White "SmirnovTimofey2000"]
[Black "LUISMIGUELOV"]
[Result "0-1"]
[WhiteElo "2048"]
[BlackElo "2203"]
[TimeControl "180+1"]
[EndTime "15:25:19 PST"]
[Termination "LUISMIGUELOV won on time"]

1. d4 {[%clk 0:03:00.9]} 1... d6 {[%clk 0:02:53.8]} 2. Bf4 {[%clk 0:03:00.3]}
2... Nd7 {[%clk 0:02:51.2]} 3. e4 {[%clk 0:02:59.1]} 3... e5 {[%clk 0:02:49.8]}
4. dxe5 {[%clk 0:02:59.2]} 4... dxe5 {[%clk 0:02:49.6]} 5. Bg3 {[%clk
0:02:56.7]} 5... Bc5 {[%clk 0:02:46.4]} 6. Nf3 {[%clk 0:02:54.8]} 6... Qe7
{[%clk 0:02:43.8]} 7. Nc3 {[%clk 0:02:53.2]} 7... c6 {[%clk 0:02:42.5]} 8. Qd2
{[%clk 0:02:49.9]} 8... Ngf6 {[%clk 0:02:41.6]} 9. O-O-O {[%clk 0:02:49]} 9...
b5 {[%clk 0:02:40.5]} 10. Kb1 {[%clk 0:02:32.4]} 10... a5 {[%clk 0:02:40.1]} 11.
Bd3 {[%clk 0:02:10.7]} 11... a4 {[%clk 0:02:36.3]} 12. a3 {[%clk 0:02:00]} 12...
b4 {[%clk 0:02:30.7]} 13. axb4 {[%clk 0:01:56]} 13... Bxb4 {[%clk 0:02:30.4]}
14. Qg5 {[%clk 0:01:49]} 14... Bxc3 {[%clk 0:02:17]} 15. bxc3 {[%clk 0:01:47.9]}
15... O-O {[%clk 0:02:16.2]} 16. Nxe5 {[%clk 0:01:43.4]} 16... Nxe5 {[%clk
0:02:04.1]} 17. Qxe5 {[%clk 0:01:43.3]} 17... Qa3 {[%clk 0:01:57.3]} 18. Qd4
{[%clk 0:01:24]} 18... Be6 {[%clk 0:01:52.8]} 19. Qb4 {[%clk 0:00:52.5]} 19...
Qa2+ {[%clk 0:01:04.7]} 20. Kc1 {[%clk 0:00:52.7]} 20... c5 {[%clk 0:00:58.6]}
21. Qxc5 {[%clk 0:00:35.2]} 21... Rfc8 {[%clk 0:00:52]} 22. Qb4 {[%clk
0:00:32.4]} 22... a3 {[%clk 0:00:45.7]} 23. Kd2 {[%clk 0:00:31.8]} 23... Qb2
{[%clk 0:00:30.5]} 24. Qxb2 {[%clk 0:00:25]} 24... axb2 {[%clk 0:00:29.7]} 25.
Rb1 {[%clk 0:00:25.5]} 25... Ra2 {[%clk 0:00:28]} 26. Be5 {[%clk 0:00:18.7]}
26... Nd7 {[%clk 0:00:23.3]} 27. Bd4 {[%clk 0:00:17.6]} 27... Rb8 {[%clk
0:00:21.1]} 28. Be5 {[%clk 0:00:16.6]} 28... Rb7 {[%clk 0:00:19]} 29. Bd4 {[%clk
0:00:15]} 29... f6 {[%clk 0:00:18.9]} 30. c4 {[%clk 0:00:12.2]} 30... Nb6 {[%clk
0:00:17.9]} 31. Rxb2 {[%clk 0:00:09.6]} 31... Rxb2 {[%clk 0:00:16.1]} 32. Bxb2
{[%clk 0:00:10.1]} 32... Bxc4 {[%clk 0:00:16.2]} 33. Bxc4+ {[%clk 0:00:09.8]}
33... Nxc4+ {[%clk 0:00:15.7]} 34. Kc3 {[%clk 0:00:06.5]} 34... Nxb2 {[%clk
0:00:15.6]} 35. Rb1 {[%clk 0:00:05.6]} 35... Na4+ {[%clk 0:00:15.4]} 36. Kd4
{[%clk 0:00:04.6]} 36... Rxb1 {[%clk 0:00:15.8]} 0-1

[Event "Late-Titled-Tuesday-Blitz-November-28-2023"]
[Site "Chess.com"]
[Date "2023.11.28"]
[Round "8"]
[White "SouS007"]
[Black "PoXerStar"]
[Result "0-1"]
[WhiteElo "2558"]
[BlackElo "2413"]
[TimeControl "180+1"]
[EndTime "15:25:22 PST"]
[Termination "PoXerStar won by checkmate"]

1. Nf3 {[%clk 0:03:00.9]} 1... Nf6 {[%clk 0:02:44.3]} 2. c4 {[%clk 0:03:00.4]}
2... g6 {[%clk 0:02:44.1]} 3. Nc3 {[%clk 0:03:00.5]} 3... Bg7 {[%clk 0:02:44.7]}
4. e4 {[%clk 0:03:01.1]} 4... O-O {[%clk 0:02:44.8]} 5. d4 {[%clk 0:03:01.1]}
5... d6 {[%clk 0:02:44.6]} 6. h3 {[%clk 0:03:01.5]} 6... c5 {[%clk 0:02:36.2]}
7. d5 {[%clk 0:03:00.5]} 7... e6 {[%clk 0:02:36.7]} 8. Be2 {[%clk 0:03:00.9]}
8... exd5 {[%clk 0:02:35.1]} 9. exd5 {[%clk 0:03:01.8]} 9... Bf5 {[%clk
0:02:33.6]} 10. O-O {[%clk 0:03:00.4]} 10... Ne4 {[%clk 0:02:26.3]} 11. Nxe4
{[%clk 0:02:55.1]} 11... Bxe4 {[%clk 0:02:27.2]} 12. Ng5 {[%clk 0:02:52.3]}
12... Bf5 {[%clk 0:02:23]} 13. Bd3 {[%clk 0:02:50.9]} 13... Bxd3 {[%clk
0:02:19.3]} 14. Qxd3 {[%clk 0:02:51.8]} 14... Nd7 {[%clk 0:02:17.7]} 15. f4
{[%clk 0:02:39.7]} 15... h6 {[%clk 0:01:50.2]} 16. Ne4 {[%clk 0:02:38.8]} 16...
Nf6 {[%clk 0:01:49.7]} 17. Nf2 {[%clk 0:02:27.9]} 17... Qd7 {[%clk 0:01:40.2]}
18. Bd2 {[%clk 0:02:27.2]} 18... Qf5 {[%clk 0:01:29.7]} 19. Qxf5 {[%clk
0:02:26.6]} 19... gxf5 {[%clk 0:01:30.6]} 20. Rae1 {[%clk 0:02:25.7]} 20... Rfe8
{[%clk 0:01:29]} 21. Bc3 {[%clk 0:02:20]} 21... Ne4 {[%clk 0:01:18.3]} 22. Bxg7
{[%clk 0:02:16.3]} 22... Kxg7 {[%clk 0:01:18.1]} 23. Nxe4 {[%clk 0:02:01.1]}
23... Rxe4 {[%clk 0:01:17.1]} 24. Rxe4 {[%clk 0:02:01.1]} 24... fxe4 {[%clk
0:01:18]} 25. Kf2 {[%clk 0:01:55.6]} 25... f5 {[%clk 0:01:02.9]} 26. Ke3 {[%clk
0:01:53.2]} 26... Kf6 {[%clk 0:01:02.3]} 27. g4 {[%clk 0:01:52.4]} 27... Rg8
{[%clk 0:01:02]} 28. Rg1 {[%clk 0:01:51.3]} 28... a6 {[%clk 0:00:56.7]} 29. a4
{[%clk 0:01:50.7]} 29... b6 {[%clk 0:00:56.6]} 30. Rg3 {[%clk 0:01:44.1]} 30...
h5 {[%clk 0:00:52.7]} 31. g5+ {[%clk 0:01:43.1]} 31... Kg6 {[%clk 0:00:43.8]}
32. Kd2 {[%clk 0:01:39.1]} 32... a5 {[%clk 0:00:39]} 33. Rb3 {[%clk 0:01:38.6]}
33... Rb8 {[%clk 0:00:38.4]} 34. Ke3 {[%clk 0:00:49.7]} 34... Kf7 {[%clk
0:00:34.9]} 35. Kf2 {[%clk 0:00:50.2]} 35... Rb7 {[%clk 0:00:31.1]} 36. Kg3
{[%clk 0:00:50.5]} 36... Kg6 {[%clk 0:00:29.4]} 37. Kh4 {[%clk 0:00:50.9]} 37...
Rb8 {[%clk 0:00:28.8]} 38. Rb5 {[%clk 0:00:51.6]} 38... Rb7 {[%clk 0:00:22.4]}
39. Kg3 {[%clk 0:00:49.5]} 39... Rb8 {[%clk 0:00:19.4]} 40. Kh4 {[%clk
0:00:49.7]} 40... Rb7 {[%clk 0:00:19.3]} 41. b4 {[%clk 0:00:50.3]} 41... cxb4
{[%clk 0:00:19]} 42. c5 {[%clk 0:00:50.9]} 42... dxc5 {[%clk 0:00:18.9]} 43. d6
{[%clk 0:00:51.8]} 43... Rd7 {[%clk 0:00:15.8]} 44. Rxb6 {[%clk 0:00:52]} 44...
c4 {[%clk 0:00:11.7]} 45. Rc6 {[%clk 0:00:52.1]} 45... c3 {[%clk 0:00:11.5]} 46.
Rc5 {[%clk 0:00:52.5]} 46... Rxd6 {[%clk 0:00:09.7]} 47. Kg3 {[%clk 0:00:49.6]}
47... Rb6 {[%clk 0:00:08.2]} 48. Kf2 {[%clk 0:00:43.9]} 48... b3 {[%clk
0:00:08.2]} 49. Rxc3 {[%clk 0:00:44.6]} 49... b2 {[%clk 0:00:08.5]} 50. Ke3
{[%clk 0:00:41.4]} 50... b1=Q {[%clk 0:00:08.1]} 51. Kd4 {[%clk 0:00:42]} 51...
Qb4+ {[%clk 0:00:07.8]} 52. Rc4 {[%clk 0:00:42.4]} 52... Rd6+ {[%clk 0:00:07.8]}
53. Ke5 {[%clk 0:00:43]} 53... Qxc4 {[%clk 0:00:07.8]} 54. h4 {[%clk 0:00:42.2]}
54... Qd4# {[%clk 0:00:07]} 0-1

[Event "Late-Titled-Tuesday-Blitz-November-28-2023"]
[Site "Chess.com"]
[Date "2023.11.28"]
[Round "8"]
[White "karinachess1"]
[Black "FaustinoOro"]
[Result "1-0"]
[WhiteElo "2629"]
[BlackElo "2841"]
[TimeControl "180+1"]
[EndTime "15:25:32 PST"]
[Termination "karinachess1 won on time"]

1. d4 {[%clk 0:03:00.9]} 1... Nf6 {[%clk 0:02:59.6]} 2. c4 {[%clk 0:03:01]} 2...
e6 {[%clk 0:02:59.9]} 3. Nc3 {[%clk 0:03:01.1]} 3... Bb4 {[%clk 0:03:00.1]} 4.
a3 {[%clk 0:03:01.3]} 4... Bxc3+ {[%clk 0:02:59.1]} 5. bxc3 {[%clk 0:03:02.2]}
5... O-O {[%clk 0:02:59.9]} 6. e3 {[%clk 0:03:02.7]} 6... d5 {[%clk 0:03:00.6]}
7. Bd3 {[%clk 0:03:03.1]} 7... c5 {[%clk 0:03:00.1]} 8. Ne2 {[%clk 0:03:03.1]}
8... b6 {[%clk 0:02:59.5]} 9. O-O {[%clk 0:03:03]} 9... dxc4 {[%clk 0:02:59.6]}
10. Bxc4 {[%clk 0:03:02.8]} 10... Ba6 {[%clk 0:02:58.2]} 11. Bxa6 {[%clk
0:02:53.6]} 11... Nxa6 {[%clk 0:02:59.1]} 12. Qa4 {[%clk 0:02:44.5]} 12... Qc8
{[%clk 0:02:47.6]} 13. c4 {[%clk 0:02:35.1]} 13... Rd8 {[%clk 0:02:43.5]} 14.
Bb2 {[%clk 0:02:34.1]} 14... Ne4 {[%clk 0:02:39.3]} 15. Rfd1 {[%clk 0:02:32.9]}
15... Nd6 {[%clk 0:02:31.5]} 16. Rac1 {[%clk 0:02:30.9]} 16... Qb7 {[%clk
0:02:25.7]} 17. d5 {[%clk 0:02:18.2]} 17... exd5 {[%clk 0:02:24.4]} 18. cxd5
{[%clk 0:02:19.1]} 18... c4 {[%clk 0:02:21.9]} 19. Nf4 {[%clk 0:02:09.5]} 19...
Nc5 {[%clk 0:02:11.5]} 20. Qc2 {[%clk 0:02:09.5]} 20... f6 {[%clk 0:01:55.4]}
21. Bd4 {[%clk 0:02:02.5]} 21... Nb3 {[%clk 0:01:52]} 22. Rb1 {[%clk 0:02:02.4]}
22... Rac8 {[%clk 0:01:49.8]} 23. Bc3 {[%clk 0:01:52.5]} 23... Re8 {[%clk
0:01:41.8]} 24. Ne6 {[%clk 0:01:45]} 24... a5 {[%clk 0:01:31.3]} 25. Qe2 {[%clk
0:01:42.6]} 25... Qf7 {[%clk 0:01:29.5]} 26. Qf3 {[%clk 0:01:33.6]} 26... Nb5
{[%clk 0:01:26.3]} 27. e4 {[%clk 0:01:06]} 27... Nxa3 {[%clk 0:01:23.8]} 28. Rb2
{[%clk 0:01:03.2]} 28... Nb5 {[%clk 0:01:23.6]} 29. Rc2 {[%clk 0:00:53.2]} 29...
a4 {[%clk 0:01:11.7]} 30. Bb4 {[%clk 0:00:50.8]} 30... Rxe6 {[%clk 0:00:52.7]}
31. dxe6 {[%clk 0:00:50.8]} 31... Qxe6 {[%clk 0:00:53.6]} 32. Qe3 {[%clk
0:00:39]} 32... Qc6 {[%clk 0:00:37.8]} 33. e5 {[%clk 0:00:30.2]} 33... Re8
{[%clk 0:00:31.4]} 34. f4 {[%clk 0:00:25.7]} 34... fxe5 {[%clk 0:00:27.2]} 35.
fxe5 {[%clk 0:00:26.6]} 35... Qe6 {[%clk 0:00:16.6]} 36. Qe4 {[%clk 0:00:23.4]}
36... Rc8 {[%clk 0:00:14.9]} 37. Rd5 {[%clk 0:00:19.4]} 37... Qc6 {[%clk
0:00:09.6]} 38. e6 {[%clk 0:00:16.6]} 38... Qe8 {[%clk 0:00:08]} 39. e7 {[%clk
0:00:15.2]} 39... Nc7 {[%clk 0:00:06.8]} 40. Qxc4 {[%clk 0:00:11.5]} 40... Nxd5
{[%clk 0:00:02.9]} 41. Qxd5+ {[%clk 0:00:08.5]} 1-0